fUST/lending_fUST_20240706
["ID","MTS","AMOUNT","RATE_DAILY","PERIOD"]
[331307704,1720206699956,-201.0347046,0.0005041,120]
[331307705,1720206699966,-500.0,0.0005041,120]
[331307706,1720206699976,-500.0,0.0005041,120]
[331307707,1720206699987,-500.0,0.0005041,120]
[331307708,1720206699997,-2239.44,0.0005041,120]
[331307709,1720206700007,-500.0,0.0005041,120]
[331307710,1720206700017,-500.0,0.0005041,120]
[331307711,1720206700027,-583.71942751,0.0005041,120]
[331307712,1720206700036,-500.0,0.0005041,2]
[331307713,1720206700046,-500.0,0.0005041,120]
[331307714,1720206700056,-500.0,0.0005041,120]
[331307715,1720206700066,-500.0,0.0005041,120]
[331307716,1720206700076,-500.0,0.0005041,120]
[331307717,1720206700085,-500.0,0.0005041,120]
[331307718,1720206700095,-645.95,0.0005041,120]
[331307719,1720206700105,-500.0,0.0005041,120]
[331307720,1720206700116,-500.0,0.0005041,120]
[331307721,1720206700126,-500.0,0.0005041,120]
[331307722,1720206700136,-500.0,0.0005041,120]
[331307723,1720206700147,-500.27791491,0.0005041,120]
[331307724,1720206700157,-500.0,0.0005041,120]
[331307725,1720206700167,-500.0,0.0005041,120]
[331307726,1720206700177,-500.0,0.0005041,120]
[331307727,1720206700188,-500.0,0.0005041,120]
[331307728,1720206700198,-500.0,0.0005041,120]
[331307729,1720206700208,-500.0,0.0005041,120]
[331307730,1720206700218,-500.0,0.0005041,120]
[331307731,1720206700229,-1609.49,0.0005041,120]
[331307732,1720206700240,-508.10464974,0.0005041,120]
[331307733,1720206700250,-500.0,0.0005041,120]
[331307734,1720206700261,-500.0,0.0005041,120]
[331307735,1720206700272,-1795.75,0.0005041,120]
[331307736,1720206700282,-500.0,0.0005041,120]
[331307737,1720206700293,-500.0,0.0005041,120]
[331307738,1720206700303,-500.0,0.0005041,120]
[331307739,1720206700314,-500.0,0.0005041,120]
[331307740,1720206700325,-331.88807004,0.0005041,120]
[331307741,1720206700335,-500.0,0.0005041,120]
[331307742,1720206700346,-500.0,0.0005041,120]
[331307743,1720206700357,-500.0,0.0005041,120]
[331307744,1720206700371,-500.0,0.0005041,120]
[331307745,1720206700387,-500.0,0.0005041,120]
[331307746,1720206700398,-500.0,0.0005041,120]
[331307747,1720206700408,-503.2720684,0.0005041,120]
[331307748,1720206700422,-500.0,0.0005041,120]
[331307749,1720206700433,-500.0,0.0005041,120]
[331307750,1720206700443,-500.0,0.0005041,120]
[331307751,1720206700454,-500.0,0.0005041,120]
[331307752,1720206700464,-500.0,0.0005041,120]
[331307753,1720206700475,-358.88433163,0.0005041,120]
[331307754,1720206700486,-500.0,0.0005041,120]
[331307755,1720206700497,-500.0,0.0005041,120]
[331307756,1720206700507,-500.0,0.0005041,120]
[331307757,1720206700517,-500.0,0.0005041,120]
[331307758,1720206700527,-622.57,0.0005041,120]
[331307759,1720206700537,-1632.66,0.0005041,120]
[331307760,1720206700547,-527.38731138,0.0005041,120]
[331307761,1720206700558,-742.15,0.0005041,120]
[331307762,1720206700570,-620.32,0.0005041,120]
[331307763,1720206700581,-1768.78,0.0005041,120]
[331307764,1720206700591,-500.0,0.0005041,120]
[331307765,1720206700601,-496.33902026,0.0005041,120]
[331307766,1720206700611,-683.75,0.0005041,120]
[331307767,1720206700621,-500.0,0.0005041,120]
[331307768,1720206700630,-500.0,0.0005041,120]
[331307769,1720206700640,-500.0,0.0005041,120]
[331307770,1720206700650,-712.01,0.0005041,120]
[331307771,1720206700660,-500.0,0.0005041,120]
[331307772,1720206700671,-761.74,0.0005041,120]
[331307773,1720206700681,-1991.26,0.0005041,120]
[331307774,1720206700692,-501.83450842,0.0005041,120]
[331307775,1720206700702,-500.0,0.0005041,120]
[331307776,1720206700712,-620.99,0.0005041,120]
[331307777,1720206700722,-4001.72,0.0005041,120]
[331307778,1720206700733,-3810.29,0.0005041,120]
[331307779,1720206700743,-500.0,0.0005041,120]
[331307780,1720206700753,-500.0,0.0005041,120]
[331307781,1720206700762,-500.0,0.0005041,120]
[331307782,1720206700773,-500.0,0.0005041,120]
[331307783,1720206700784,-500.0,0.0005041,120]
[331307784,1720206700794,-500.0,0.0005041,120]
[331307785,1720206700804,-500.0,0.0005041,120]
[331307786,1720206700815,-4325.75,0.0005041,120]
[331307787,1720206700825,-608.07457747,0.0005041,120]
[331307788,1720206700835,-547.43101686,0.0005041,120]
[331307789,1720206700845,-592.14,0.0005041,120]
[331307790,1720206700855,-642.84,0.0005041,120]
[331307791,1720206700864,-1105.61,0.0005041,120]
[331307792,1720206700876,-500.0,0.0005041,120]
[331307793,1720206700887,-531.10345192,0.0005041,120]
[331307794,1720206700899,-500.0,0.0005041,120]
[331307795,1720206700909,-503.65329091,0.0005041,120]
[331307796,1720206700920,-500.0,0.0005041,120]
[331307797,1720206700929,-500.0,0.0005041,120]
[331307798,1720206700939,-500.0,0.0005041,120]
[331307799,1720206700949,-500.0,0.0005041,120]
[331307800,1720206700959,-500.0,0.0005041,120]
[331307801,1720206700968,-500.0,0.0005041,120]
[331307802,1720206700980,-500.0,0.0005041,22]
[331307803,1720206700990,-157.89855408,0.0005041,120]
[331307804,1720206701000,-500.0,0.0005041,120]
[331307805,1720206701010,-500.0,0.0005041,120]
[331307806,1720206701020,-1081.83,0.0005041,120]
[331307807,1720206701030,-500.0,0.0005041,120]
[331307808,1720206701040,-500.0,0.0005041,120]
[331307809,1720206701049,-500.0,0.0005041,120]
[331307810,1720206701059,-535.69,0.0005041,120]
[331307811,1720206701069,-2443.75,0.0005041,120]
[331307812,1720206701079,-500.0,0.0005041,120]
[331307813,1720206701088,-1454.27,0.0005041,120]
[331307814,1720206701098,-1837.33,0.0005041,120]
[331307815,1720206701107,-500.0,0.0005041,120]
[331307816,1720206701117,-500.0,0.0005041,120]
[331307817,1720206701127,-500.0,0.0005041,120]
[331307818,1720206701138,-500.0,0.0005041,120]
[331307819,1720206701148,-745.91,0.0005041,120]
[331307820,1720206701158,-500.0,0.0005041,120]
[331307821,1720206701167,-500.0,0.0005041,120]
[331307822,1720206701177,-500.0,0.0005041,120]
[331307823,1720206701186,-500.0,0.0005041,120]
[331307824,1720206701196,-500.0,0.0005041,120]
[331307825,1720206701207,-549.99,0.0005041,120]
[331307826,1720206701217,-3460.08,0.0005041,120]
[331307827,1720206701227,-1459.1,0.0005041,120]
[331307828,1720206701238,-500.0,0.0005041,120]
[331307829,1720206701248,-500.0,0.0005041,120]
[331307830,1720206701258,-752.3,0.0005041,120]
[331307831,1720206701268,-500.0,0.0005041,120]
[331307832,1720206701278,-521.16828657,0.0005041,120]
[331307833,1720206701413,-500.0,0.0005041,120]
[331307834,1720206701423,-500.0,0.0005041,120]
[331307835,1720206701432,-842.07,0.0005041,120]
[331307836,1720206701442,-500.0,0.0005041,120]
[331307837,1720206701451,-346.23097437,0.0005041,120]
[331307838,1720206701460,-500.0,0.0005041,120]
[331307839,1720206701470,-500.0,0.0005041,120]
[331307840,1720206701480,-500.0,0.0005041,120]
[331307841,1720206701490,-9922.07,0.0005041,120]
[331307842,1720206701499,-500.0,0.0005041,120]
[331307843,1720206701509,-851.17,0.0005041,120]
[331307844,1720206701519,-7492.78,0.0005041,120]
[331307845,1720206701529,-500.0,0.0005041,120]
[331307846,1720206701539,-500.0,0.0005041,120]
[331307847,1720206701549,-5800.05,0.0005041,120]
[331307848,1720206701558,-500.0,0.0005041,120]
[331307849,1720206701568,-500.0,0.0005041,120]
[331307850,1720206701578,-500.0,0.0005041,120]
[331307851,1720206701588,-1802.57,0.0005041,120]
[331307852,1720206701597,-500.0,0.0005041,120]
[331307853,1720206701607,-500.0,0.0005041,120]
[331307854,1720206701616,-315.52183158,0.0005041,120]
[331307855,1720206701626,-500.0,0.0005041,120]
[331307856,1720206701636,-500.0,0.0005041,120]
[331307857,1720206701645,-500.0,0.0005041,120]
[331307858,1720206701654,-500.0,0.0005041,120]
[331307859,1720206701664,-500.0,0.0005041,120]
[331307860,1720206701674,-500.0,0.0005041,120]
[331307861,1720206701684,-500.0,0.0005041,120]
[331307862,1720206701694,-663.25,0.0005041,120]
[331307863,1720206701703,-500.0,0.0005041,120]
[331307864,1720206701712,-1833.61,0.0005041,120]
[331307865,1720206701721,-500.0,0.0005041,120]
[331307866,1720206701730,-258.10442131,0.0005041,120]
[331307867,1720206701739,-756.39,0.0005041,120]
[331307868,1720206701749,-299.98621179,0.0005041,120]
[331307869,1720206701758,-548.62830581,0.0005041,120]
[331307870,1720206701768,-500.0,0.0005041,120]
[331307871,1720206701782,-500.0,0.0005041,120]
[331307872,1720206701791,-500.0,0.0005041,120]
[331307873,1720206701801,-7628.12,0.0005041,120]
[331307874,1720206701810,-1266.72,0.0005041,120]
[331307875,1720206701819,-842.46,0.0005041,120]
[331307876,1720206701828,-1064.97,0.0005041,120]
[331307877,1720206701837,-1841.02,0.0005041,120]
[331307878,1720206701847,-500.0,0.0005041,120]
[331307879,1720206701859,-529.45982667,0.0005041,120]
[331307880,1720206701872,-500.0,0.0005041,120]
[331307881,1720206701882,-508.34921043,0.0005041,120]
[331307882,1720206701891,-502.50411365,0.0005041,120]
[331307883,1720206701901,-595.44,0.0005041,120]
[331307884,1720206701911,-842.07,0.0005041,120]
[331307885,1720206701921,-500.0,0.0005041,120]
[331307886,1720206701931,-1792.59,0.0005041,120]
[331307887,1720206701941,-500.0,0.0005041,120]
[331307888,1720206701951,-500.0,0.0005041,120]
[331307889,1720206701961,-660.5,0.0005041,120]
[331307890,1720206701972,-7850.86,0.0005041,120]
[331307891,1720206701982,-500.0,0.0005041,120]
[331307892,1720206701992,-466.07389223,0.0005041,120]
[331307893,1720206702002,-2988.27,0.0005041,21]
[331307894,1720206702012,-909.34,0.0005041,120]
[331307895,1720206702021,-500.0,0.0005041,120]
[331307896,1720206702031,-504.5932476,0.0005041,120]
[331307897,1720206702041,-511.8,0.0005041,120]
[331307898,1720206702050,-500.0,0.0005041,120]
[331307899,1720206702060,-500.0,0.0005041,120]
[331307900,1720206702068,-1389.78,0.0005041,120]
[331307901,1720206702078,-500.0,0.0005041,120]
[331307902,1720206702087,-500.0,0.0005041,120]
[331307903,1720206702096,-1165.51,0.0005041,120]
[331307904,1720206702106,-876.01,0.0005041,120]
[331307905,1720206702116,-5056.8,0.0005041,120]
[331307906,1720206702126,-500.0,0.0005041,120]
[331307907,1720206702135,-500.0,0.0005041,120]
[331307908,1720206702144,-500.0,0.0005041,120]
[331307909,1720206702154,-691.5,0.0005041,120]
[331307910,1720206702163,-500.0,0.0005041,120]
[331307911,1720206702173,-518.49,0.0005041,120]
[331307912,1720206702182,-500.0,0.0005041,120]
[331307913,1720206702192,-500.0,0.0005041,120]
[331307914,1720206702201,-3968.12,0.0005041,120]
[331307915,1720206702211,-575.33,0.0005041,120]
[331307916,1720206702221,-500.0,0.0005041,120]
[331307917,1720206702230,-500.0,0.0005041,120]
[331307918,1720206702240,-1442.77,0.0005041,120]
[331307919,1720206702250,-500.0,0.0005041,120]
[331307920,1720206702259,-689.65,0.0005041,120]
[331307921,1720206702269,-500.0,0.0005041,120]
[331307922,1720206702278,-151.0,0.00050411,120]
[331307923,1720206702288,-151.0,0.00050548,120]
[331307924,1720206702297,-500.0,0.00050958,120]
[331307925,1720206702306,-511.90257238,0.00050958,120]
[331307926,1720206702316,-500.0,0.00050958,120]
[331307927,1720206702326,-500.0,0.00050958,120]
[331307928,1720206702335,-500.0,0.00050958,120]
[331307929,1720206702344,-613.4,0.00050958,120]
[331307930,1720206702354,-500.0,0.00050958,120]
[331307931,1720206702363,-500.0,0.00050958,120]
[331307932,1720206702372,-500.0,0.00050958,120]
[331307933,1720206702382,-500.0,0.00050958,120]
[331307934,1720206702391,-500.0,0.00050958,120]
[331307935,1720206702401,-500.0,0.00050958,120]
[331307936,1720206702410,-500.0,0.00050958,120]
[331307937,1720206702419,-501.10129387,0.00050958,120]
[331307938,1720206702428,-941.88,0.00050958,120]
[331307939,1720206702437,-500.0,0.00050958,120]
[331307940,1720206702447,-611.08,0.00050958,120]
[331307941,1720206702456,-500.0,0.00050958,120]
[331307942,1720206702466,-500.0,0.00050958,120]
[331307943,1720206702475,-500.0,0.00050958,3]
[331307944,1720206702484,-500.0,0.00050958,120]
[331307945,1720206702494,-500.0,0.00050958,120]
[331307946,1720206702503,-500.0,0.00050958,120]
[331307947,1720206702513,-500.0,0.00050958,120]
[331307948,1720206702523,-500.0,0.00050958,120]
[331307949,1720206702532,-501.26044289,0.00050958,120]
[331307950,1720206702542,-500.0,0.00050958,120]
[331307951,1720206702551,-500.0,0.00050958,120]
[331307952,1720206702561,-500.0,0.00050958,120]
[331307953,1720206702570,-500.0,0.00050958,120]
[331307954,1720206702579,-632.77,0.00050958,120]
[331307955,1720206702589,-500.0,0.00050958,30]
[331307956,1720206702599,-1902.81,0.00050958,60]
[331307957,1720206702608,-194.72572024,0.00050958,120]
[331307958,1720206702617,-502.93042896,0.00050958,120]
[331307959,1720206702627,-500.0,0.00050958,120]
[331307960,1720206702636,-500.0,0.00050958,120]
[331307961,1720206702646,-692.3,0.00050958,120]
[331307962,1720206702655,-500.0,0.00050958,120]
[331307963,1720206702665,-500.0,0.00050958,120]
[331307964,1720206702675,-500.0,0.00050958,120]
[331307965,1720206702685,-500.0,0.00050958,120]
[331307966,1720206702695,-500.0,0.00050958,120]
[331307967,1720206702704,-500.0,0.00050958,120]
[331307968,1720206702713,-500.0,0.00050958,120]
[331307969,1720206702723,-605.23,0.00050958,120]
[331307970,1720206702733,-500.0,0.00050958,120]
[331307971,1720206702744,-500.0,0.00050958,120]
[331307972,1720206702754,-500.0,0.00050958,120]
[331307973,1720206702763,-500.0,0.00050958,120]
[331307974,1720206702777,-500.0,0.00050958,120]
[331307975,1720206702787,-500.0,0.00050958,120]
[331307976,1720206702796,-500.0,0.00050958,120]
[331307977,1720206702807,-500.0,0.00050958,120]
[331307978,1720206702817,-500.0,0.00050958,120]
[331307979,1720206702826,-501.38791639,0.00050958,120]
[331307980,1720206702835,-511.97,0.00050958,120]
[331307981,1720206702844,-500.0,0.00050958,120]
[331307982,1720206702856,-500.0,0.00050958,120]
[331307983,1720206702868,-500.0,0.00050958,120]
[331307984,1720206702878,-500.0,0.00050958,120]
[331307985,1720206702887,-504.93741519,0.00050958,120]
[331307986,1720206702897,-500.0,0.00050958,120]
[331307987,1720206702906,-500.0,0.00050958,120]
[331307988,1720206702915,-500.0,0.00050958,120]
[331307989,1720206702924,-500.0,0.00050958,120]
[331307990,1720206702934,-500.0,0.00050958,120]
[331307991,1720206702943,-500.0,0.00050958,120]
[331307992,1720206702952,-656.41,0.00050958,120]
[331307993,1720206702962,-500.0,0.00050958,120]
[331307994,1720206702971,-626.41,0.00050958,120]
[331307995,1720206702980,-500.0,0.00050958,120]
[331307996,1720206702989,-500.0,0.00050958,120]
[331307997,1720206702999,-500.0,0.00050958,120]
[331307998,1720206703008,-500.0,0.00050958,120]
[331307999,1720206703020,-500.0,0.00050958,120]
[331308000,1720206703029,-500.43926562,0.00050958,3]
[331308001,1720206703040,-500.0,0.00050958,120]
[331308002,1720206703050,-507.76575981,0.00050958,120]
[331308003,1720206703060,-500.0,0.00050958,120]
[331308004,1720206703070,-500.0,0.00050958,120]
[331308005,1720206703080,-500.0,0.00050958,120]
[331308006,1720206703089,-500.0,0.00050958,120]
[331308007,1720206703099,-500.0,0.00050958,120]
[331308008,1720206703108,-500.0,0.00050958,120]
[331308009,1720206703117,-500.0,0.00050958,120]
[331308010,1720206703127,-500.0,0.00050958,120]
[331308011,1720206703136,-286.09245915,0.00050958,120]
[331308012,1720206703146,-886.86,0.00050958,120]
[331308013,1720206703155,-371.27185289,0.00050958,120]
[331308014,1720206703165,-500.0,0.00050958,120]
[331308015,1720206703175,-705.29,0.00050958,120]
[331308016,1720206703184,-500.0,0.00050958,120]
[331308017,1720206703193,-500.0,0.00050958,120]
[331308018,1720206703203,-500.0,0.00050958,120]
[331308019,1720206703212,-500.0,0.00050958,120]
[331308020,1720206703221,-500.0,0.00050958,120]
[331308021,1720206703231,-500.0,0.00050958,20]
[331308022,1720206703240,-452.89294913,0.00050958,120]
[331308023,1720206703250,-721.6,0.00050958,120]
[331308024,1720206703260,-500.0,0.00050958,120]
[331308025,1720206703269,-520.99,0.00050958,120]
[331308026,1720206703278,-500.0,0.00050958,120]
[331308027,1720206703287,-1085.28,0.00050958,120]
[331308028,1720206703296,-500.0,0.00050958,120]
[331308029,1720206703306,-500.0,0.00050958,120]
[331308030,1720206703315,-500.0,0.00050958,120]
[331308031,1720206703325,-500.0,0.00050958,120]
[331308032,1720206703334,-166.8192634,0.00050958,120]
[331308033,1720206703344,-1000.0,0.00050958,120]
[331308034,1720206703353,-1785.4,0.00050958,120]
[331308035,1720206703362,-500.0,0.00050958,120]
[331308036,1720206703372,-500.0,0.00050958,120]
[331308037,1720206703383,-500.0,0.00050958,120]
[331308038,1720206703392,-500.0,0.00050958,120]
[331308039,1720206703402,-509.39982361,0.00050958,120]
[331308040,1720206703411,-500.0,0.00050958,120]
[331308041,1720206703421,-15075.9,0.00050958,120]
[331308042,1720206703430,-520.53,0.00050958,120]
[331308043,1720206703441,-500.0,0.00050958,120]
[331308044,1720206703451,-500.0,0.00050958,120]
[331308045,1720206703460,-500.0,0.00050958,120]
[331308046,1720206703469,-754.02,0.00050958,120]
[331308047,1720206703479,-500.0,0.00050958,120]
[331308048,1720206703488,-500.0,0.00050958,120]
[331308049,1720206703497,-1267.05,0.00050958,120]
[331308050,1720206703506,-1964.53,0.00050958,120]
[331308051,1720206703515,-500.0,0.00050958,120]
[331308052,1720206703524,-617.24,0.00050958,120]
[331308053,1720206703533,-500.0,0.00050958,120]
[331308054,1720206703542,-500.0,0.00050958,120]
[331308055,1720206703551,-1740.94,0.00050958,120]
[331308056,1720206703561,-500.0,0.00050958,120]
[331308057,1720206703570,-500.0,0.00050958,120]
[331308058,1720206703580,-500.0,0.00050958,120]
[331308059,1720206703590,-500.0,0.00050958,120]
[331308060,1720206703599,-500.0,0.00050958,120]
[331308061,1720206703608,-518.22,0.00050958,120]
[331308062,1720206703617,-500.0,0.00050958,120]
[331308063,1720206703627,-500.0,0.00050958,120]
[331308064,1720206703636,-821.59,0.00050958,120]
[331308065,1720206703645,-500.0,0.00050958,120]
[331308066,1720206703654,-571.67,0.00050958,120]
[331308067,1720206703663,-500.0,0.00050958,120]
[331308068,1720206703672,-500.0,0.00050958,120]
[331308069,1720206703682,-500.0,0.00050958,120]
[331308070,1720206703691,-500.0,0.00050958,120]
[331308071,1720206703700,-768.22,0.00050958,120]
[331308072,1720206703710,-515.82,0.00050958,120]
[331308073,1720206703719,-500.0,0.00050958,120]
[331308074,1720206703728,-282.85,0.00050958,7]
[331308075,1720206703737,-500.0,0.00050958,120]
[331308076,1720206703747,-177.19921427,0.00050958,120]
[331308077,1720206703756,-15336.98,0.00050958,120]
[331308078,1720206703765,-1339.72,0.00050958,120]
[331308079,1720206703777,-500.0,0.00050958,120]
[331308080,1720206703786,-502.67928315,0.00050958,120]
[331308081,1720206703795,-500.0,0.00050958,120]
[331308082,1720206703804,-500.0,0.00050958,120]
[331308083,1720206703814,-500.0,0.00050958,120]
[331308084,1720206703824,-500.0,0.00050958,120]
[331308085,1720206703833,-1218.28,0.00050958,120]
[331308086,1720206703842,-500.0,0.00050958,120]
[331308087,1720206703850,-500.0,0.00050958,120]
[331308088,1720206703862,-527.64,0.00050958,120]
[331308089,1720206703879,-500.0,0.00050958,120]
[331308090,1720206703889,-528.45,0.00050958,120]
[331308091,1720206703898,-801.56,0.00050958,120]
[331308092,1720206703908,-1952.88,0.00050958,120]
[331308093,1720206703917,-500.0,0.00050958,120]
[331308094,1720206703930,-1193.59,0.00050958,120]
[331308095,1720206703939,-982.74,0.00050958,120]
[331308096,1720206703950,-500.0,0.00050958,120]
[331308097,1720206703962,-318.69208428,0.00050958,120]
[331308098,1720206703971,-868.68,0.00050958,120]
[331308099,1720206703980,-500.0,0.00050958,120]
[331308100,1720206703990,-500.0,0.00050958,120]
[331308101,1720206703999,-500.0,0.00050958,120]
[331308102,1720206704008,-500.0,0.00050958,120]
[331308103,1720206704018,-500.0,0.00050958,120]
[331308104,1720206704027,-500.0,0.00050958,120]
[331308105,1720206704037,-855.23,0.00050958,120]
[331308106,1720206704046,-500.0,0.00050958,120]
[331308107,1720206704055,-500.0,0.00050958,120]
[331308108,1720206704064,-500.0,0.00050958,120]
[331308109,1720206704073,-500.0,0.00050958,120]
[331308110,1720206704083,-500.0,0.00050958,2]
[331308111,1720206704092,-660.12,0.00050958,120]
[331308112,1720206704101,-500.0,0.00050958,120]
[331308113,1720206704111,-500.0,0.00050958,120]
[331308114,1720206704120,-2587.07,0.00050958,120]
[331308115,1720206704129,-500.0,0.00050958,120]
[331308116,1720206704138,-504.41,0.00050958,120]
[331308117,1720206704148,-500.0,0.00050958,120]
[331308118,1720206704158,-1083.21,0.00050958,120]
[331308119,1720206704167,-500.0,0.00050958,120]
[331308120,1720206704176,-500.0,0.00050958,120]
[331308121,1720206704185,-500.0,0.00050958,120]
[331308122,1720206704195,-1000.0,0.00050958,90]
[331308123,1720206704203,-500.0,0.00050958,120]
[331308124,1720206704213,-502.55708074,0.00050958,120]
[331308125,1720206704222,-568.81,0.00050958,120]
[331308126,1720206704231,-500.0,0.00050958,120]
[331308127,1720206704241,-500.0,0.00050958,120]
[331308128,1720206704251,-500.0,0.00050958,120]
[331308129,1720206704260,-500.0,0.00050958,120]
[331308130,1720206704269,-500.0,0.00050958,120]
[331308131,1720206704279,-533.15490668,0.00050958,120]
[331308132,1720206704288,-196.15615996,0.00050958,120]
[331308133,1720206704298,-940.93,0.00050958,120]
[331308134,1720206704306,-500.0,0.00050958,120]
[331308135,1720206704316,-500.0,0.00050958,120]
[331308136,1720206704325,-1774.22,0.00050958,120]
[331308137,1720206704334,-500.0,0.00050958,60]
[331308138,1720206704343,-783.38,0.00050958,120]
[331308139,1720206704352,-500.0,0.00050958,120]
[331308140,1720206704361,-500.0,0.00050958,120]
[331308141,1720206704384,-421.63800581,0.00050958,120]
[331308142,1720206704394,-500.0,0.00050958,120]
[331308143,1720206704403,-500.0,0.00050958,120]
[331308144,1720206704412,-500.0,0.00050958,120]
[331308145,1720206704421,-2239.44,0.00050958,120]
[331308146,1720206704430,-500.0,0.00050958,120]
[331308147,1720206704439,-500.0,0.00050958,120]
[331308148,1720206704448,-500.0,0.00050958,2]
[331308149,1720206704457,-500.0,0.00050958,120]
[331308150,1720206704467,-500.0,0.00050958,120]
[331308151,1720206704476,-500.0,0.00050958,120]
[331308152,1720206704485,-500.0,0.00050958,120]
[331308153,1720206704494,-645.95,0.00050958,120]
[331308154,1720206704503,-500.0,0.00050958,120]
[331308155,1720206704513,-500.0,0.00050958,120]
[331308156,1720206704522,-500.0,0.00050958,120]
[331308157,1720206704531,-500.0,0.00050958,120]
[331308158,1720206704540,-500.0,0.00050958,120]
[331308159,1720206704550,-500.0,0.00050958,120]
[331308160,1720206704559,-500.0,0.00050958,120]
[331308161,1720206704568,-500.0,0.00050958,120]
[331308162,1720206704579,-515.52440905,0.00050958,120]
[331308163,1720206704588,-500.0,0.00050958,120]
[331308164,1720206704598,-1609.49,0.00050958,120]
[331308165,1720206704607,-500.0,0.00050958,120]
[331308166,1720206704616,-500.0,0.00050958,120]
[331308167,1720206704626,-1795.75,0.00050958,120]
[331308168,1720206704635,-518.58278699,0.00050958,120]
[331308169,1720206704645,-500.0,0.00050958,120]
[331308170,1720206704654,-500.0,0.00050958,120]
[331308171,1720206704664,-500.0,0.00050958,120]
[331308172,1720206704673,-500.0,0.00050958,120]
[331308173,1720206704683,-500.0,0.00050958,120]
[331308174,1720206704692,-500.0,0.00050958,120]
[331308175,1720206704702,-500.0,0.00050958,120]
[331308176,1720206704711,-173.89122502,0.00050958,120]
[331308177,1720206704720,-500.0,0.00050958,120]
[331308178,1720206704729,-500.0,0.00050958,120]
[331308179,1720206704738,-500.0,0.00050958,120]
[331308180,1720206704748,-500.0,0.00050958,120]
[331308181,1720206704757,-500.0,0.00050958,120]
[331308182,1720206704768,-500.0,0.00050958,120]
[331308183,1720206704784,-500.0,0.00050958,120]
[331308184,1720206704794,-500.0,0.00050958,120]
[331308185,1720206704803,-500.0,0.00050958,120]
[331308186,1720206704813,-500.0,0.00050958,120]
[331308187,1720206704823,-622.57,0.00050958,120]
[331308188,1720206704832,-1632.66,0.00050958,120]
[331308189,1720206704842,-742.15,0.00050958,120]
[331308190,1720206704852,-620.32,0.00050958,120]
[331308191,1720206704862,-500.0,0.00050958,120]
[331308192,1720206704881,-1768.78,0.00050958,120]
[331308193,1720206704893,-683.75,0.00050958,120]
[331308194,1720206704903,-500.0,0.00050958,120]
[331308195,1720206704912,-508.9847151,0.00050958,120]
[331308196,1720206704922,-500.0,0.00050958,120]
[331308197,1720206704931,-712.01,0.00050958,120]
[331308198,1720206704940,-500.0,0.00050958,120]
[331308199,1720206704951,-761.74,0.00050958,120]
[331308200,1720206704960,-1991.26,0.00050958,120]
[331308201,1720206704970,-500.0,0.00050958,120]
[331308202,1720206704979,-620.99,0.00050958,120]
[331308203,1720206704988,-4001.72,0.00050958,120]